Workbook

Sheet exampledataset-move12inches
A1: Inertial Navigation
B2: Given a(t) data, integrate to find v(t) and r(t), using simple (left-hand) integration.
B4: g= | C4: 9.8 | D4: m/sec2
B5: ay bias= | C5: =(E5-5000)/50000 -> -0.06352 | D5: g | E5: 1824
A7: Raw data | F7: Analysis
A8: Timestamp | B8: AccelX | C8: AccelY | D8: AccelZ | F8: ay | G8: dVy | H8: Vy | I8: dy | J8: y
A9: (sec) | B9: (g) | C9: (g) | D9: (g) | F9: (m/sec2) | G9: (m/sec) | H9: (m/sec) | I9: (m) | J9: (m)
A10: 0 | B10: 0.036224 | C10: -0.054337 | D10: -1.086731 | F10: =(C10-aybias)*g -> 0.0899934
A11: 0.0164963 | B11: 0.018112 | C11: -0.072449 | D11: -1.068619 | F11: -0.0875042 | G11: =(F10+F11)*(A11-A10)/2 -> 2.053129498e-05 | H11: =SUM(G$11:G11) -> 2.053129498e-05
A12: 0.0344037 | B12: 0.018112 | C12: -0.072449 | D12: -1.086731 | F12: -0.0875042 | G12: =(F11+F12)*(A12-A11)/2 -> -0.001566972711 | H12: =SUM(G$11:G12) -> -0.001546441416 | I12: =(H11+H12)*(A12-A11)/2 -> -1.366254145e-05 | J12: =SUM(I$12:I12) -> -1.366254145e-05
A13: 0.0511972 | B13: 0 | C13: -0.072449 | D13: -1.068619 | F13: -0.0875042 | G13: -0.001469501783 | H13: =SUM(G$11:G13) -> -0.003015943199 | I13: =(H12+H13)*(A13-A12)/2 -> -3.830920302e-05 | J13: =SUM(I$12:I13) -> -5.197174447e-05
A14: 0.0680955 | B14: 0.018112 | C14: -0.072449 | D14: -1.086731 | F14: -0.0875042 | G14: -0.001478672223 | H14: =SUM(G$11:G14) -> -0.004494615422 | I14: -6.345783637e-05 | J14: =SUM(I$12:I14) -> -0.0001154295808
A15: 0.0846263 | B15: 0.018112 | C15: -0.054337 | D15: -1.068619 | F15: 0.0899934 | G15: 2.057423368e-05 | H15: =SUM(G$11:G15) -> -0.004474041188 | I15: -7.412953434e-05 | J15: =SUM(I$12:I15) -> -0.0001895591152
A16: 0.10155 | B16: 0.018112 | C16: -0.072449 | D16: -1.068619 | F16: -0.0875042 | G16: 2.106323702e-05 | H16: =SUM(G$11:G16) -> -0.004452977951 | I16: -7.55390969e-05 | J16: =SUM(I$12:I16) -> -0.0002650982121
A17: 0.118195 | B17: 0.018112 | C17: -0.072449 | D17: -1.086731 | F17: -0.0875042 | G17: -0.001456507409 | H17: =SUM(G$11:G17) -> -0.00590948536 | I17: -8.624160091e-05 | J17: =SUM(I$12:I17) -> -0.000351339813
A18: 0.135088 | B18: 0.018112 | C18: -0.054337 | D18: -1.104843 | F18: 0.0899934 | G18: 2.10250278e-05 | H18: =SUM(G$11:G18) -> -0.005888460332 | I18: -9.965134829e-05 | J18: =SUM(I$12:I18) -> -0.0004509911613
A19: 0.151741 | B19: 0 | C19: -0.072449 | D19: -1.104843 | F19: -0.0875042 | G19: 2.07263238e-05 | H19: =SUM(G$11:G19) -> -0.005867734008 | I19: -9.788795218e-05 | J19: =SUM(I$12:I19) -> -0.0005488791134
A20: 0.168482 | B20: 0.018112 | C20: -0.054337 | D20: -1.086731 | F20: 0.0899934 | G20: 2.08358486e-05 | H20: =SUM(G$11:G20) -> -0.00584689816 | I20: -9.805732856e-05 | J20: =SUM(I$12:I20) -> -0.000646936442
A21: 0.185298 | B21: -0.018112 | C21: -0.072449 | D21: -1.086731 | F21: -0.0875042 | G21: 2.09291936e-05 | H21: =SUM(G$11:G21) -> -0.005825968966 | I21: -9.814546679e-05 | J21: =SUM(I$12:I21) -> -0.0007450819088
A22: 0.202097 | B22: 0.018112 | C22: -0.054337 | D22: -1.104843 | F22: 0.0899934 | G22: 2.09080354e-05 | H22: =SUM(G$11:G22) -> -0.005805060931 | I22: -9.769483562e-05 | J22: =SUM(I$12:I22) -> -0.0008427767444
A23: 0.218666 | B23: 0.018112 | C23: -0.054337 | D23: -1.068619 | F23: 0.0899934 | G23: 0.001491100645 | H23: =SUM(G$11:G23) -> -0.004313960286 | I23: -8.383103127e-05 | J23: =SUM(I$12:I23) -> -0.0009266077757
A24: 0.235693 | B24: 0.018112 | C24: -0.072449 | D24: -1.086731 | F24: -0.0875042 | G24: 2.11918042e-05 | H24: =SUM(G$11:G24) -> -0.004292768482 | I24: -7.327338537e-05 | J24: =SUM(I$12:I24) -> -0.0009998811611
A25: 0.252376 | B25: 0.036224 | C25: -0.036224 | D25: -1.068619 | F25: 0.2675008 | G25: 0.001501441639 | H25: =SUM(G$11:G25) -> -0.002791326843 | I25: -5.909198115e-05 | J25: =SUM(I$12:I25) -> -0.001058973142
A26: 0.269034 | B26: 0.018112 | C26: -0.054337 | D26: -1.086731 | F26: 0.0899934 | G26: 0.002977569192 | H26: =SUM(G$11:G26) -> 0.0001862423487 | I26: -2.169774875e-05 | J26: =SUM(I$12:I26) -> -0.001080670891
A27: 0.285749 | B27: 0.018112 | C27: -0.054337 | D27: -1.086731 | F27: 0.0899934 | G27: 0.001504239681 | H27: =SUM(G$11:G27) -> 0.00169048203 | I27: 1.568472399e-05 | J27: =SUM(I$12:I27) -> -0.001064986167
A28: 0.302581 | B28: 0 | C28: -0.072449 | D28: -1.068619 | F28: -0.0875042 | G28: 2.09491072e-05 | H28: =SUM(G$11:G28) -> 0.001711431137 | I28: 2.863050121e-05 | J28: =SUM(I$12:I28) -> -0.001036355666
A29: 0.319415 | B29: 0.018112 | C29: -0.072449 | D29: -1.086731 | F29: -0.0875042 | G29: -0.001473045703 | H29: =SUM(G$11:G29) -> 0.0002383854341 | I29: 1.641160608e-05 | J29: =SUM(I$12:I29) -> -0.00101994406
A30: 0.336235 | B30: 0 | C30: -0.072449 | D30: -1.086731 | F30: -0.0875042 | G30: -0.001471820644 | H30: =SUM(G$11:G30) -> -0.00123343521 | I30: -8.368368614e-06 | J30: =SUM(I$12:I30) -> -0.001028312428
A31: 0.352719 | B31: -0.018112 | C31: -0.054337 | D31: -1.068619 | F31: 0.0899934 | G31: 2.05159864e-05 | H31: =SUM(G$11:G31) -> -0.001212919223 | I31: -2.016285324e-05 | J31: =SUM(I$12:I31) -> -0.001048475282
A32: 0.36957 | B32: 0.018112 | C32: -0.072449 | D32: -1.086731 | F32: -0.0875042 | G32: 2.09727546e-05 | H32: =SUM(G$11:G32) -> -0.001191946469 | I32: -2.026219589e-05 | J32: =SUM(I$12:I32) -> -0.001068737477
A33: 0.386406 | B33: 0 | C33: -0.072449 | D33: -1.086731 | F33: -0.0875042 | G33: -0.001473220711 | H33: =SUM(G$11:G33) -> -0.00266516718 | I33: -3.24691827e-05 | J33: =SUM(I$12:I33) -> -0.00110120666
A34: 0.403236 | B34: 0 | C34: -0.072449 | D34: -1.086731 | F34: -0.0875042 | G34: -0.001472695686 | H34: =SUM(G$11:G34) -> -0.004137862866 | I34: -5.724749784e-05 | J34: =SUM(I$12:I34) -> -0.001158454158
A35: 0.419987 | B35: 0.018112 | C35: -0.054337 | D35: -1.068619 | F35: 0.0899934 | G35: 2.08482946e-05 | H35: =SUM(G$11:G35) -> -0.004117014571 | I35: -6.913872598e-05 | J35: =SUM(I$12:I35) -> -0.001227592884
A36: 0.436726 | B36: 0.018112 | C36: -0.072449 | D36: -1.104843 | F36: -0.0875042 | G36: 2.08333594e-05 | H36: =SUM(G$11:G36) -> -0.004096181212 | I36: -6.874034211e-05 | J36: =SUM(I$12:I36) -> -0.001296333226
A37: 0.453474 | B37: 0.018112 | C37: -0.072449 | D37: -1.086731 | F37: -0.0875042 | G37: -0.001465520342 | H37: =SUM(G$11:G37) -> -0.005561701554 | I37: -8.087511028e-05 | J37: =SUM(I$12:I37) -> -0.001377208336
A38: 0.47004 | B38: 0.018112 | C38: -0.072449 | D38: -1.068619 | F38: -0.0875042 | G38: -0.001449594577 | H38: =SUM(G$11:G38) -> -0.007011296131 | I38: -0.0001041421398 | J38: =SUM(I$12:I38) -> -0.001481350476
A39: 0.486962 | B39: 0.018112 | C39: -0.054337 | D39: -1.068619 | F39: 0.0899934 | G39: 2.10611212e-05 | H39: =SUM(G$11:G39) -> -0.00699023501 | I39: -0.000118466955 | J39: =SUM(I$12:I39) -> -0.001599817431
A40: 0.50375 | B40: 0 | C40: -0.090561 | D40: -1.086731 | F40: -0.2650018 | G40: -0.00146902051 | H40: =SUM(G$11:G40) -> -0.008459255519 | I40: -0.0001296830235 | J40: =SUM(I$12:I40) -> -0.001729500455
A41: 0.52048 | B41: 0.018112 | C41: -0.072449 | D41: -1.086731 | F41: -0.0875042 | G41: -0.00294871269 | H41: =SUM(G$11:G41) -> -0.01140796821 | I41: -0.0001661893265 | J41: =SUM(I$12:I41) -> -0.001895689781
A42: 0.537312 | B42: 0 | C42: -0.036224 | D42: -1.086731 | F42: 0.2675008 | G42: 0.001514851386 | H42: =SUM(G$11:G42) -> -0.009893116824 | I42: -0.0001792699316 | J42: =SUM(I$12:I42) -> -0.002074959713
A43: 0.554018 | B43: 0.018112 | C43: -0.054337 | D43: -1.086731 | F43: 0.0899934 | G43: 0.002986149053 | H43: =SUM(G$11:G43) -> -0.006906967771 | I43: -0.0001403311066 | J43: =SUM(I$12:I43) -> -0.002215290819
A44: 0.570559 | B44: -0.018112 | C44: -0.054337 | D44: -1.068619 | F44: 0.0899934 | G44: 0.001488580829 | H44: =SUM(G$11:G44) -> -0.005418386942 | I44: -0.0001019368462 | J44: =SUM(I$12:I44) -> -0.002317227666
A45: 0.587303 | B45: 0.036224 | C45: -0.072449 | D45: -1.086731 | F45: -0.0875042 | G45: 2.08395824e-05 | H45: =SUM(G$11:G45) -> -0.005397547359 | I45: -9.055100197e-05 | J45: =SUM(I$12:I45) -> -0.002407778667
A46: 0.604219 | B46: 0.018112 | C46: -0.054337 | D46: -1.086731 | F46: 0.0899934 | G46: 2.10536536e-05 | H46: =SUM(G$11:G46) -> -0.005376493706 | I46: -9.112683933e-05 | J46: =SUM(I$12:I46) -> -0.002498905507
A47: 0.620688 | B47: 0.036224 | C47: -0.054337 | D47: -1.068619 | F47: 0.0899934 | G47: 0.001482101305 | H47: =SUM(G$11:G47) -> -0.003894392401 | I47: -7.634111165e-05 | J47: =SUM(I$12:I47) -> -0.002575246618
A48: 0.636431 | B48: 0.018112 | C48: -0.054337 | D48: -1.086731 | F48: 0.0899934 | G48: 0.001416766096 | H48: =SUM(G$11:G48) -> -0.002477626305 | I48: -5.015734524e-05 | J48: =SUM(I$12:I48) -> -0.002625403964
A49: 0.65317 | B49: 0.018112 | C49: -0.054337 | D49: -1.068619 | F49: 0.0899934 | G49: 0.001506399523 | H49: =SUM(G$11:G49) -> -0.0009712267823 | I49: -2.886517591e-05 | J49: =SUM(I$12:I49) -> -0.00265426914
A50: 0.669918 | B50: 0.018112 | C50: -0.054337 | D50: -1.086731 | F50: 0.0899934 | G50: 0.001507209463 | H50: =SUM(G$11:G50) -> 0.0005359826809 | I50: -3.644734104e-06 | J50: =SUM(I$12:I50) -> -0.002657913874
A51: 0.687903 | B51: 0.036224 | C51: -0.072449 | D51: -1.068619 | F51: -0.0875042 | G51: 2.2384131e-05 | H51: =SUM(G$11:G51) -> 0.0005583668119 | I51: 9.840937815e-06 | J51: =SUM(I$12:I51) -> -0.002648072936
A52: 0.704559 | B52: -0.018112 | C52: -0.090561 | D52: -1.104843 | F52: -0.2650018 | G52: -0.002935669968 | H52: =SUM(G$11:G52) -> -0.002377303156 | I52: -1.514810187e-05 | J52: =SUM(I$12:I52) -> -0.002663221038
A53: 0.721407 | B53: 0.036224 | C53: -0.072449 | D53: -1.068619 | F53: -0.0875042 | G53: -0.002969510544 | H53: =SUM(G$11:G53) -> -0.0053468137 | I53: -6.50679604e-05 | J53: =SUM(I$12:I53) -> -0.002728288998
A54: 0.738159 | B54: 0.018112 | C54: -0.072449 | D54: -1.086731 | F54: -0.0875042 | G54: -0.001465870358 | H54: =SUM(G$11:G54) -> -0.006812684058 | I54: -0.0001018479532 | J54: =SUM(I$12:I54) -> -0.002830136951
A55: 0.754181 | B55: 0.018112 | C55: -0.054337 | D55: -1.068619 | F55: 0.0899934 | G55: 1.99409812e-05 | H55: =SUM(G$11:G55) -> -0.006792743077 | I55: -0.0001089930768 | J55: =SUM(I$12:I55) -> -0.002939130028
A56: 0.771686 | B56: 0.018112 | C56: -0.054337 | D56: -1.086731 | F56: 0.0899934 | G56: 0.001575334467 | H56: =SUM(G$11:G56) -> -0.00521740861 | I56: -0.0001051188526 | J56: =SUM(I$12:I56) -> -0.003044248881
A57: 0.788422 | B57: 0.036224 | C57: -0.072449 | D57: -1.086731 | F57: -0.0875042 | G57: 2.08296256e-05 | H57: =SUM(G$11:G57) -> -0.005196578985 | I57: -8.714424819e-05 | J57: =SUM(I$12:I57) -> -0.003131393129
A58: 0.805255 | B58: 0.018112 | C58: -0.072449 | D58: -1.086731 | F58: -0.0875042 | G58: -0.001472958199 | H58: =SUM(G$11:G58) -> -0.006669537183 | I58: -9.987116673e-05 | J58: =SUM(I$12:I58) -> -0.003231264296
A59: 0.821936 | B59: 0 | C59: -0.072449 | D59: -1.068619 | F59: -0.0875042 | G59: -0.00145965756 | H59: =SUM(G$11:G59) -> -0.008129194743 | I59: -0.0001234288236 | J59: =SUM(I$12:I59) -> -0.003354693119
A60: 0.8387 | B60: 0.018112 | C60: -0.072449 | D60: -1.068619 | F60: -0.0875042 | G60: -0.001466920409 | H60: =SUM(G$11:G60) -> -0.009596115152 | I60: -0.0001485735475 | J60: =SUM(I$12:I60) -> -0.003503266667
A61: 0.855476 | B61: 0.018112 | C61: -0.072449 | D61: -1.068619 | F61: -0.0875042 | G61: -0.001467970459 | H61: =SUM(G$11:G61) -> -0.01106408561 | I61: -0.000173297764 | J61: =SUM(I$12:I61) -> -0.003676564431
A62: 0.872213 | B62: 0.018112 | C62: -0.072449 | D62: -1.086731 | F62: -0.0875042 | G62: -0.001464557795 | H62: =SUM(G$11:G62) -> -0.01252864341 | I62: -0.0001974357528 | J62: =SUM(I$12:I62) -> -0.003874000184
A63: 0.88887 | B63: 0 | C63: -0.054337 | D63: -1.086731 | F63: 0.0899934 | G63: 2.07313022e-05 | H63: =SUM(G$11:G63) -> -0.0125079121 | I63: -0.0002085169526 | J63: =SUM(I$12:I63) -> -0.004082517136
A64: 0.905749 | B64: 0 | C64: -0.072449 | D64: -1.068619 | F64: -0.0875042 | G64: 2.10076034e-05 | H64: =SUM(G$11:G64) -> -0.0124869045 | I64: -0.0002109437547 | J64: =SUM(I$12:I64) -> -0.004293460891
A65: 0.922458 | B65: 0.036224 | C65: -0.072449 | D65: -1.086731 | F65: -0.0875042 | G65: -0.001462107678 | H65: =SUM(G$11:G65) -> -0.01394901218 | I65: -0.0002208588659 | J65: =SUM(I$12:I65) -> -0.004514319757
A66: 0.939067 | B66: 0.018112 | C66: -0.054337 | D66: -1.086731 | F66: 0.0899934 | G66: 2.06715614e-05 | H66: =SUM(G$11:G66) -> -0.01392834062 | I66: -0.0002315074763 | J66: =SUM(I$12:I66) -> -0.004745827233
A67: 0.95594 | B67: 0.036224 | C67: -0.072449 | D67: -1.086731 | F67: -0.0875042 | G67: 2.10001358e-05 | H67: =SUM(G$11:G67) -> -0.01390734048 | I67: -0.0002348357236 | J67: =SUM(I$12:I67) -> -0.004980662957
A68: 0.972731 | B68: 0.018112 | C68: -0.054337 | D68: -1.086731 | F68: 0.0899934 | G68: 2.08980786e-05 | H68: =SUM(G$11:G68) -> -0.0138864424 | I68: -0.0002333427042 | J68: =SUM(I$12:I68) -> -0.005214005661
A69: 0.989469 | B69: 0.036224 | C69: -0.054337 | D69: -1.086731 | F69: 0.0899934 | G69: 0.001506309529 | H69: =SUM(G$11:G69) -> -0.01238013287 | I69: -0.0002198249685 | J69: =SUM(I$12:I69) -> -0.00543383063
A70: 1.00612 | B70: 0.018112 | C70: -0.072449 | D70: -1.104843 | F70: -0.0875042 | G70: 2.07238346e-05 | H70: =SUM(G$11:G70) -> -0.01235940904 | I70: -0.0002059690562 | J70: =SUM(I$12:I70) -> -0.005639799686
A71: 1.02301 | B71: 0.018112 | C71: -0.072449 | D71: -1.086731 | F71: -0.0875042 | G71: -0.001477945938 | H71: =SUM(G$11:G71) -> -0.01383735498 | I71: -0.0002212316721 | J71: =SUM(I$12:I71) -> -0.005861031358
A72: 1.03976 | B72: 0.018112 | C72: -0.054337 | D72: -1.086731 | F72: 0.0899934 | G72: 2.084705e-05 | H72: =SUM(G$11:G72) -> -0.01381650793 | I72: -0.0002316011018 | J72: =SUM(I$12:I72) -> -0.00609263246
A73: 1.05652 | B73: 0 | C73: -0.054337 | D73: -1.104843 | F73: 0.0899934 | G73: 0.001508289384 | H73: =SUM(G$11:G73) -> -0.01230821854 | I73: -0.0002189252078 | J73: =SUM(I$12:I73) -> -0.006311557668
A74: 1.07329 | B74: 0.018112 | C74: -0.054337 | D74: -1.068619 | F74: =(C74-aybias)*g -> 0.0899934 | G74: 0.001509189318 | H74: =SUM(G$11:G74) -> -0.01079902923 | I74: -0.0001937542725 | J74: =SUM(I$12:I74) -> -0.00650531194
A75: 1.09003 | B75: 0.018112 | C75: -0.090561 | D75: -1.068619 | F75: -0.2650018 | G75: -0.001464820308 | H75: =SUM(G$11:G75) -> -0.01226384953 | I75: -0.0001930362952 | J75: =SUM(I$12:I75) -> -0.006698348235
A76: 1.10679 | B76: -0.018112 | C76: -0.054337 | D76: -1.104843 | F76: 0.0899934 | G76: =(F75+F76)*(A76-A75)/2 -> -0.001466570392 | H76: =SUM(G$11:G76) -> -0.01373041993 | I76: -0.0002178319781 | J76: =SUM(I$12:I76) -> -0.006916180213
A77: 1.12352 | B77: 0.018112 | C77: -0.054337 | D77: -1.104843 | F77: 0.0899934 | G77: 0.001505589582 | H77: =SUM(G$11:G77) -> -0.01222483034 | I77: =(H76+H77)*(A77-A76)/2 -> -0.0002171156685 | J77: =SUM(I$12:I77) -> -0.007133295882
A78: 1.14029 | B78: 0 | C78: -0.072449 | D78: -1.068619 | F78: -0.0875042 | G78: 2.0871942e-05 | H78: =SUM(G$11:G78) -> -0.0122039584 | I78: -0.0002048353936 | J78: =SUM(I$12:I78) -> -0.007338131275
A79: 1.15704 | B79: 0.036224 | C79: -0.054337 | D79: -1.086731 | F79: 0.0899934 | G79: 2.084705e-05 | H79: =SUM(G$11:G79) -> -0.01218311135 | I79: -0.0002042417092 | J79: =SUM(I$12:I79) -> -0.007542372985
A80: 1.17381 | B80: 0.018112 | C80: -0.054337 | D80: -1.086731 | F80: 0.0899934 | G80: 0.001509189318 | H80: =SUM(G$11:G80) -> -0.01067392203 | I80: -0.0001916562249 | J80: =SUM(I$12:I80) -> -0.00773402921
A81: 1.19055 | B81: 0.018112 | C81: -0.072449 | D81: -1.068619 | F81: -0.0875042 | G81: 2.0834604e-05 | H81: =SUM(G$11:G81) -> -0.01065308743 | I81: -0.0001785070692 | J81: =SUM(I$12:I81) -> -0.007912536279
A82: 1.2073 | B82: 0.018112 | C82: -0.072449 | D82: -1.086731 | F82: -0.0875042 | G82: -0.00146569535 | H82: =SUM(G$11:G82) -> -0.01211878278 | I82: -0.000190714413 | J82: =SUM(I$12:I82) -> -0.008103250692
A83: 1.22397 | B83: 0.018112 | C83: -0.054337 | D83: -1.086731 | F83: 0.0899934 | G83: 2.0747482e-05 | H83: =SUM(G$11:G83) -> -0.0120980353 | I83: -0.0002018471787 | J83: =SUM(I$12:I83) -> -0.00830509787
A84: 1.24083 | B84: 0.018112 | C84: -0.054337 | D84: -1.068619 | F84: 0.0899934 | G84: 0.001517288724 | H84: =SUM(G$11:G84) -> -0.01058074657 | I84: -0.0001911821312 | J84: =SUM(I$12:I84) -> -0.008496280002
A85: 1.25758 | B85: 0.018112 | C85: -0.072449 | D85: -1.104843 | F85: -0.0875042 | G85: 2.084705e-05 | H85: =SUM(G$11:G85) -> -0.01055989952 | I85: -0.0001770529111 | J85: =SUM(I$12:I85) -> -0.008673332913
A86: 1.2743 | B86: 0 | C86: -0.054337 | D86: -1.086731 | F86: 0.0899934 | G86: 2.0809712e-05 | H86: =SUM(G$11:G86) -> -0.01053908981 | I86: -0.0001763875508 | J86: =SUM(I$12:I86) -> -0.008849720464
A87: 1.2911 | B87: 0.018112 | C87: -0.054337 | D87: -1.122955 | F87: 0.0899934 | G87: 0.00151188912 | H87: =SUM(G$11:G87) -> -0.009027200691 | I87: -0.0001643568402 | J87: =SUM(I$12:I87) -> -0.009014077304
A88: 1.30784 | B88: 0.018112 | C88: -0.054337 | D88: -1.086731 | F88: 0.0899934 | G88: 0.001506489516 | H88: =SUM(G$11:G88) -> -0.007520711175 | I88: -0.0001385060223 | J88: =SUM(I$12:I88) -> -0.009152583326
A89: 1.32458 | B89: 0.018112 | C89: -0.054337 | D89: -1.104843 | F89: 0.0899934 | G89: 0.001506489516 | H89: =SUM(G$11:G89) -> -0.006014221659 | I89: -0.0001132873878 | J89: =SUM(I$12:I89) -> -0.009265870714
A90: 1.34127 | B90: 0.018112 | C90: -0.072449 | D90: -1.086731 | F90: -0.0875042 | G90: 2.0772374e-05 | H90: =SUM(G$11:G90) -> -0.005993449285 | I90: -0.000100204014 | J90: =SUM(I$12:I90) -> -0.009366074728
A91: 1.35811 | B91: 0 | C91: -0.054337 | D91: -1.086731 | F91: 0.0899934 | G91: 2.0959064e-05 | H91: =SUM(G$11:G91) -> -0.005972490221 | I91: -0.0001007532106 | J91: =SUM(I$12:I91) -> -0.009466827939
A92: 1.37487 | B92: 0 | C92: -0.054337 | D92: -1.068619 | F92: 0.0899934 | G92: 0.001508289384 | H92: =SUM(G$11:G92) -> -0.004464200837 | I92: -8.745947107e-05 | J92: =SUM(I$12:I92) -> -0.00955428741
A93: 1.39152 | B93: 0.036224 | C93: -0.054337 | D93: -1.086731 | F93: 0.0899934 | G93: 0.00149839011 | H93: =SUM(G$11:G93) -> -0.002965810727 | I93: -6.185484628e-05 | J93: =SUM(I$12:I93) -> -0.009616142256
A94: 1.40837 | B94: -0.018112 | C94: -0.072449 | D94: -1.086731 | F94: -0.0875042 | G94: 2.097151e-05 | H94: =SUM(G$11:G94) -> -0.002944839217 | I94: -4.979722579e-05 | J94: =SUM(I$12:I94) -> -0.009665939482
A95: 1.42506 | B95: 0 | C95: -0.072449 | D95: -1.086731 | F95: -0.0875042 | G95: -0.001460445098 | H95: =SUM(G$11:G95) -> -0.004405284315 | I95: -6.133678088e-05 | J95: =SUM(I$12:I95) -> -0.009727276263
A96: 1.4418 | B96: 0.018112 | C96: -0.072449 | D96: -1.086731 | F96: -0.0875042 | G96: -0.001464820308 | H96: =SUM(G$11:G96) -> -0.005870104623 | I96: -8.600500542e-05 | J96: =SUM(I$12:I96) -> -0.009813281268
A97: 1.45855 | B97: 0.018112 | C97: -0.054337 | D97: -1.086731 | F97: 0.0899934 | G97: 2.084705e-05 | H97: =SUM(G$11:G97) -> -0.005849257573 | I97: -9.81496584e-05 | J97: =SUM(I$12:I97) -> -0.009911430926
A98: 1.47539 | B98: 0 | C98: -0.054337 | D98: -1.104843 | F98: 0.0899934 | G98: 0.001515488856 | H98: =SUM(G$11:G98) -> -0.004333768717 | I98: -8.574108137e-05 | J98: =SUM(I$12:I98) -> -0.009997172008
A99: 1.49205 | B99: 0 | C99: -0.054337 | D99: -1.068619 | F99: 0.0899934 | G99: 0.001499290044 | H99: =SUM(G$11:G99) -> -0.002834478673 | I99: -5.971150077e-05 | J99: =SUM(I$12:I99) -> -0.01005688351
A100: 1.50889 | B100: 0 | C100: -0.072449 | D100: -1.086731 | F100: -0.0875042 | G100: 2.0959064e-05 | H100: =SUM(G$11:G100) -> -0.002813519609 | I100: -4.755614554e-05 | J100: =SUM(I$12:I100) -> -0.01010443965
A101: 1.52559 | B101: 0.018112 | C101: -0.072449 | D101: -1.086731 | F101: -0.0875042 | G101: -0.00146132014 | H101: =SUM(G$11:G101) -> -0.004274839749 | I101: -5.918780065e-05 | J101: =SUM(I$12:I101) -> -0.01016362745
A102: 1.54231 | B102: 0.018112 | C102: -0.054337 | D102: -1.086731 | F102: 0.0899934 | G102: 2.0809712e-05 | H102: =SUM(G$11:G102) -> -0.004254030037 | I102: -7.130135142e-05 | J102: =SUM(I$12:I102) -> -0.01023492881
A103: 1.55914 | B103: 0.018112 | C103: -0.072449 | D103: -1.086731 | F103: -0.0875042 | G103: 2.0946618e-05 | H103: =SUM(G$11:G103) -> -0.004233083419 | I103: -7.141905974e-05 | J103: =SUM(I$12:I103) -> -0.01030634787
A104: 1.57586 | B104: 0 | C104: -0.072449 | D104: -1.068619 | F104: -0.0875042 | G104: -0.001463070224 | H104: =SUM(G$11:G104) -> -0.005696153643 | I104: -8.300842185e-05 | J104: =SUM(I$12:I104) -> -0.01038935629
A105: 1.59265 | B105: 0.018112 | C105: -0.072449 | D105: -1.068619 | F105: -0.0875042 | G105: -0.001469195518 | H105: =SUM(G$11:G105) -> -0.007165349161 | I105: -0.000107972316 | J105: =SUM(I$12:I105) -> -0.0104973286
A106: 1.6094 | B106: 0.018112 | C106: -0.054337 | D106: -1.086731 | F106: 0.0899934 | G106: 2.084705e-05 | H106: =SUM(G$11:G106) -> -0.007144502111 | I106: -0.0001198450044 | J106: =SUM(I$12:I106) -> -0.01061717361
A107: 1.62612 | B107: 0.036224 | C107: -0.072449 | D107: -1.068619 | F107: -0.0875042 | G107: 2.0809712e-05 | H107: =SUM(G$11:G107) -> -0.007123692399 | I107: -0.0001192821061 | J107: =SUM(I$12:I107) -> -0.01073645571
A108: 1.64284 | B108: -0.018112 | C108: -0.054337 | D108: -1.086731 | F108: 0.0899934 | G108: 2.0809712e-05 | H108: =SUM(G$11:G108) -> -0.007102882687 | I108: -0.0001189341677 | J108: =SUM(I$12:I108) -> -0.01085538988
A109: 1.65968 | B109: 0 | C109: -0.072449 | D109: -1.086731 | F109: -0.0875042 | G109: 2.0959064e-05 | H109: =SUM(G$11:G109) -> -0.007081923623 | I109: -0.0001194360691 | J109: =SUM(I$12:I109) -> -0.01097482595
A110: 1.6764 | B110: 0.018112 | C110: -0.054337 | D110: -1.104843 | F110: 0.0899934 | G110: 2.0809712e-05 | H110: =SUM(G$11:G110) -> -0.007061113911 | I110: -0.0001182357938 | J110: =SUM(I$12:I110) -> -0.01109306175
A111: 1.69316 | B111: 0.072449 | C111: -0.217346 | D111: -1.086731 | F111: -1.5074948 | G111: -0.01187866173 | H111: =SUM(G$11:G111) -> -0.01893977564 | I111: -0.0002178874545 | J111: =SUM(I$12:I111) -> -0.0113109492
A112: 1.71001 | B112: -0.018112 | C112: -0.16301 | D112: -1.068619 | F112: -0.975002 | G112: -0.02091503554 | H112: =SUM(G$11:G112) -> -0.03985481118 | I112: -0.000495344394 | J112: =SUM(I$12:I112) -> -0.01180629359
A113: 1.7267 | B113: -0.036224 | C113: -0.090561 | D113: -1.122955 | F113: -0.2650018 | G113: -0.01034783171 | H113: =SUM(G$11:G113) -> -0.05020264289 | I113: -0.0007515294543 | J113: =SUM(I$12:I113) -> -0.01255782305
A114: 1.74352 | B114: -0.018112 | C114: -0.144897 | D114: -1.068619 | F114: -0.7974946 | G114: -0.008935594724 | H114: =SUM(G$11:G114) -> -0.05913823762 | I114: -0.0009195568051 | J114: =SUM(I$12:I114) -> -0.01347737985
A115: 1.76019 | B115: -0.036224 | C115: -0.090561 | D115: -1.104843 | F115: -0.2650018 | G115: -0.008855907494 | H115: =SUM(G$11:G115) -> -0.06799414511 | I115: -0.00105964841 | J115: =SUM(I$12:I115) -> -0.01453702826
A116: 1.77705 | B116: -0.036224 | C116: -0.144897 | D116: -1.068619 | F116: -0.7974946 | G116: -0.008956844652 | H116: =SUM(G$11:G116) -> -0.07695098976 | I116: -0.001221887487 | J116: =SUM(I$12:I116) -> -0.01575891575
A117: 1.79373 | B117: 0.018112 | C117: -0.126785 | D117: -1.050507 | F117: -0.619997 | G117: -0.01182187994 | H117: =SUM(G$11:G117) -> -0.08877286971 | I117: -0.001382136988 | J117: =SUM(I$12:I117) -> -0.01714105274
A118: 1.81056 | B118: -0.036224 | C118: -0.16301 | D118: -1.050507 | F118: -0.975002 | G118: -0.01342191658 | H118: =SUM(G$11:G118) -> -0.1021947863 | I118: -0.001606992825 | J118: =SUM(I$12:I118) -> -0.01874804556
A119: 1.8273 | B119: -0.036224 | C119: -0.108673 | D119: -1.086731 | F119: -0.4424994 | G119: -0.01186448672 | H119: =SUM(G$11:G119) -> -0.114059273 | I119: -0.001810046476 | J119: =SUM(I$12:I119) -> -0.02055809204
A120: 1.84407 | B120: 0.054337 | C120: -0.181122 | D120: -1.050507 | F120: -1.1524996 | G120: -0.01337406662 | H120: =SUM(G$11:G120) -> -0.1274333396 | I120: -0.002024915557 | J120: =SUM(I$12:I120) -> -0.0225830076
A121: 1.86082 | B121: 0.036224 | C121: -0.144897 | D121: -1.104843 | F121: -0.7974946 | G121: -0.01633120142 | H121: =SUM(G$11:G121) -> -0.1437645411 | I121: -0.002271282251 | J121: =SUM(I$12:I121) -> -0.02485428985
A122: 1.87757 | B122: 0.036224 | C122: -0.144897 | D122: -1.050507 | F122: -0.7974946 | G122: -0.01335803455 | H122: =SUM(G$11:G122) -> -0.1571225756 | I122: -0.002519929602 | J122: =SUM(I$12:I122) -> -0.02737421945
A123: 1.89425 | B123: 0.126785 | C123: -0.018112 | D123: -1.122955 | F123: 0.4449984 | G123: -0.002939818308 | H123: =SUM(G$11:G123) -> -0.1600623939 | I123: -0.002645322646 | J123: =SUM(I$12:I123) -> -0.03001954209
A124: 1.91108 | B124: -0.144897 | C124: -0.199234 | D124: -1.068619 | F124: -1.3299972 | G124: -0.007447264902 | H124: =SUM(G$11:G124) -> -0.1675096588 | I124: -0.002756518824 | J124: =SUM(I$12:I124) -> -0.03277606092
A125: 1.92774 | B125: -0.090561 | C125: -0.199234 | D125: -1.068619 | F125: -1.3299972 | G125: -0.02215775335 | H125: =SUM(G$11:G125) -> -0.1896674122 | I125: -0.002975285001 | J125: =SUM(I$12:I125) -> -0.03575134592
A126: 1.94459 | B126: 0.090561 | C126: -0.126785 | D126: -1.122955 | F126: -0.619997 | G126: -0.01642870114 | H126: =SUM(G$11:G126) -> -0.2060961133 | I126: -0.003334307702 | J126: =SUM(I$12:I126) -> -0.03908565362
A127: 1.96135 | B127: 0.018112 | C127: -0.072449 | D127: -1.068619 | F127: -0.0875042 | G127: -0.005928860056 | H127: =SUM(G$11:G127) -> -0.2120249734 | I127: -0.003503854706 | J127: =SUM(I$12:I127) -> -0.04258950833
A128: 1.97811 | B128: -0.054337 | C128: -0.108673 | D128: -1.068619 | F128: -0.4424994 | G128: -0.004441430168 | H128: =SUM(G$11:G128) -> -0.2164664035 | I128: -0.003590757738 | J128: =SUM(I$12:I128) -> -0.04618026607
A129: 1.9948 | B129: 0.036224 | C129: -0.126785 | D129: -1.086731 | F129: -0.619997 | G129: -0.008866532458 | H129: =SUM(G$11:G129) -> -0.225332936 | I129: -0.003686815488 | J129: =SUM(I$12:I129) -> -0.04986708155
A130: 2.01163 | B130: 0.036224 | C130: -0.144897 | D130: -1.086731 | F130: -0.7974946 | G130: -0.01192819181 | H130: =SUM(G$11:G130) -> -0.2372611278 | I130: -0.003892729047 | J130: =SUM(I$12:I130) -> -0.0537598106
A131: 2.02838 | B131: -0.018112 | C131: -0.108673 | D131: -1.050507 | F131: -0.4424994 | G131: -0.01038494975 | H131: =SUM(G$11:G131) -> -0.2476460775 | I131: -0.004061097845 | J131: =SUM(I$12:I131) -> -0.05782090845
A132: 2.04515 | B132: -0.036224 | C132: -0.108673 | D132: -1.068619 | F132: -0.4424994 | G132: -0.007420714938 | H132: =SUM(G$11:G132) -> -0.2550667925 | I132: -0.004215247415 | J132: =SUM(I$12:I132) -> -0.06203615586
A133: 2.0619 | B133: -0.036224 | C133: -0.054337 | D133: -1.104843 | F133: 0.0899934 | G133: -0.00295223775 | H133: =SUM(G$11:G133) -> -0.2580190302 | I133: -0.004297093765 | J133: =SUM(I$12:I133) -> -0.06633324963
A134: 2.07864 | B134: -0.144897 | C134: -0.072449 | D134: -1.068619 | F134: -0.0875042 | G134: 2.0834604e-05 | H134: =SUM(G$11:G134) -> -0.2579981956 | I134: -0.00431906418 | J134: =SUM(I$12:I134) -> -0.07065231381
A135: 2.09543 | B135: 0.108673 | C135: -0.054337 | D135: -1.15918 | F135: 0.0899934 | G135: 2.0896834e-05 | H135: =SUM(G$11:G135) -> -0.2579772988 | I135: -0.004331614276 | J135: =SUM(I$12:I135) -> -0.07498392808
A136: 2.11216 | B136: 0.036224 | C136: -0.126785 | D136: -1.068619 | F136: -0.619997 | G136: -0.004433480114 | H136: =SUM(G$11:G136) -> -0.2624107789 | I136: -0.00435304627 | J136: =SUM(I$12:I136) -> -0.07933697435
A137: 2.12891 | B137: -0.181122 | C137: -0.126785 | D137: -1.086731 | F137: -0.619997 | G137: -0.01038494975 | H137: =SUM(G$11:G137) -> -0.2727957287 | I137: -0.004482354501 | J137: =SUM(I$12:I137) -> -0.08381932885
A138: 2.14559 | B138: 0.144897 | C138: 0.036224 | D138: -1.141068 | F138: =(C138-aybias)*g -> 0.9774912 | G138: 0.002981501628 | H138: =SUM(G$11:G138) -> -0.269814227 | I138: -0.00452536703 | J138: =SUM(I$12:I138) -> -0.08834469588
A139: 2.16236 | B139: 0.054337 | C139: -0.036224 | D139: -1.068619 | F139: 0.2675008 | G139: 0.01043925792 | H139: =SUM(G$11:G139) -> -0.2593749691 | I139: -0.00443725141 | J139: =SUM(I$12:I139) -> -0.09278194729
A140: 2.17908 | B140: -0.036224 | C140: -0.126785 | D140: -1.104843 | F140: -0.619997 | G140: =(F139+F140)*(A140-A139)/2 -> -0.002946868232 | H140: =SUM(G$11:G140) -> -0.2623218373 | I140: -0.004361385302 | J140: =SUM(I$12:I140) -> -0.0971433326
A141: 2.19585 | B141: 0.036224 | C141: -0.054337 | D141: -1.086731 | F141: 0.0899934 | G141: -0.004444080186 | H141: =SUM(G$11:G141) -> -0.2667659175 | I141: =(H140+H141)*(A141-A140)/2 -> -0.004436400825 | J141: =SUM(I$12:I141) -> -0.1015797334
A142: 2.21265 | B142: 0.036224 | C142: 0.036224 | D142: -1.086731 | F142: 0.9774912 | G142: 0.00896687064 | H142: =SUM(G$11:G142) -> -0.2577990469 | I142: -0.004406345701 | J142: =SUM(I$12:I142) -> -0.1059860791
A143: 2.22941 | B143: -0.054337 | C143: -0.16301 | D143: -1.086731 | F143: -0.975002 | G143: 2.0859496e-05 | H143: =SUM(G$11:G143) -> -0.2577781874 | I143: -0.004320537223 | J143: =SUM(I$12:I143) -> -0.1103066163
A144: 2.24613 | B144: -0.036224 | C144: -0.090561 | D144: -1.086731 | F144: -0.2650018 | G144: -0.01036643177 | H144: =SUM(G$11:G144) -> -0.2681446192 | I144: -0.004396714663 | J144: =SUM(I$12:I144) -> -0.114703331
A145: 2.26293 | B145: 0.018112 | C145: -0.054337 | D145: -1.104843 | F145: 0.0899934 | G145: -0.00147007056 | H145: =SUM(G$11:G145) -> -0.2696146897 | I145: -0.004517178195 | J145: =SUM(I$12:I145) -> -0.1192205092
A146: 2.27966 | B146: -0.018112 | C146: -0.054337 | D146: -1.104843 | F146: 0.0899934 | G146: 0.001505589582 | H146: =SUM(G$11:G146) -> -0.2681091001 | I146: -0.004498059502 | J146: =SUM(I$12:I146) -> -0.1237185687
A147: 2.29647 | B147: 0.018112 | C147: -0.108673 | D147: -1.068619 | F147: -0.4424994 | G147: -0.00296281293 | H147: =SUM(G$11:G147) -> -0.2710719131 | I147: -0.004531816416 | J147: =SUM(I$12:I147) -> -0.1282503851
A148: 2.31318 | B148: 0.072449 | C148: -0.144897 | D148: -1.068619 | F148: -0.7974946 | G148: -0.01036014987 | H148: =SUM(G$11:G148) -> -0.2814320629 | I148: -0.00461617072 | J148: =SUM(I$12:I148) -> -0.1328665558
A149: 2.32989 | B149: -0.126785 | C149: -0.054337 | D149: -1.104843 | F149: 0.0899934 | G149: -0.005911172526 | H149: =SUM(G$11:G149) -> -0.2873432355 | I149: -0.004752117618 | J149: =SUM(I$12:I149) -> -0.1376186735
A150: 2.34673 | B150: -0.018112 | C150: -0.054337 | D150: -1.068619 | F150: 0.0899934 | G150: 0.001515488856 | H150: =SUM(G$11:G150) -> -0.2858277466 | I150: -0.004826099669 | J150: =SUM(I$12:I150) -> -0.1424447731
A151: 2.36338 | B151: 0 | C151: -0.054337 | D151: -1.086731 | F151: 0.0899934 | G151: 0.00149839011 | H151: =SUM(G$11:G151) -> -0.2843293565 | I151: -0.004746557883 | J151: =SUM(I$12:I151) -> -0.147191331
A152: 2.38022 | B152: 0.018112 | C152: -0.072449 | D152: -1.068619 | F152: -0.0875042 | G152: 2.0959064e-05 | H152: =SUM(G$11:G152) -> -0.2843083974 | I152: -0.004787929888 | J152: =SUM(I$12:I152) -> -0.1519792609
A153: 2.3969 | B153: 0.018112 | C153: -0.126785 | D153: -1.086731 | F153: -0.619997 | G153: -0.005900560008 | H153: =SUM(G$11:G153) -> -0.2902089574 | I153: -0.00479147474 | J153: =SUM(I$12:I153) -> -0.1567707356
A154: 2.41367 | B154: -0.036224 | C154: -0.090561 | D154: -1.086731 | F154: -0.2650018 | G154: -0.007420714938 | H154: =SUM(G$11:G154) -> -0.2976296724 | I154: -0.004929026911 | J154: =SUM(I$12:I154) -> -0.1616997625
A155: 2.43048 | B155: -0.036224 | C155: 0 | D155: -1.086731 | F155: 0.622496 | G155: 0.003004738751 | H155: =SUM(G$11:G155) -> -0.2946249336 | I155: -0.004977899964 | J155: =SUM(I$12:I155) -> -0.1666776625
A156: 2.44724 | B156: -0.018112 | C156: -0.036224 | D156: -1.086731 | F156: 0.2675008 | G156: 0.007458173184 | H156: =SUM(G$11:G156) -> -0.2871667604 | I156: -0.004875414396 | J156: =SUM(I$12:I156) -> -0.1715530769
A157: 2.4639 | B157: -0.054337 | C157: 0.036224 | D157: -1.104843 | F157: 0.9774912 | G157: 0.01037078336 | H157: =SUM(G$11:G157) -> -0.2767959771 | I157: -0.004697809604 | J157: =SUM(I$12:I157) -> -0.1762508865
A158: 2.48079 | B158: -0.036224 | C158: -0.054337 | D158: -1.068619 | F158: 0.0899934 | G158: 0.009014907447 | H158: =SUM(G$11:G158) -> -0.2677810696 | I158: -0.00459895316 | J158: =SUM(I$12:I158) -> -0.1808498397
A159: 2.49748 | B159: -0.018112 | C159: -0.036224 | D159: -1.068619 | F159: 0.2675008 | G159: 0.002983289099 | H159: =SUM(G$11:G159) -> -0.2647977805 | I159: -0.004444370505 | J159: =SUM(I$12:I159) -> -0.1852942102
A160: 2.51423 | B160: -0.036224 | C160: -0.054337 | D160: -1.068619 | F160: 0.0899934 | G160: 0.002994013925 | H160: =SUM(G$11:G160) -> -0.2618037666 | I160: -0.004410287957 | J160: =SUM(I$12:I160) -> -0.1897044981
A161: 2.53069 | B161: -0.036224 | C161: -0.036224 | D161: -1.086731 | F161: 0.2675008 | G161: 0.002942177266 | H161: =SUM(G$11:G161) -> -0.2588615893 | I161: -0.00428507588 | J161: =SUM(I$12:I161) -> -0.193989574
A162: 2.54766 | B162: -0.018112 | C162: -0.108673 | D162: -1.086731 | F162: -0.4424994 | G162: -0.001484863121 | H162: =SUM(G$11:G162) -> -0.2603464525 | I162: -0.004405480235 | J162: =SUM(I$12:I162) -> -0.1983950542
A163: 2.56442 | B163: -0.054337 | C163: -0.072449 | D163: -1.086731 | F163: -0.0875042 | G163: -0.004441430168 | H163: =SUM(G$11:G163) -> -0.2647878826 | I163: -0.004400625728 | J163: =SUM(I$12:I163) -> -0.20279568
A164: 2.58109 | B164: -0.018112 | C164: -0.036224 | D164: -1.086731 | F164: 0.2675008 | G164: 0.001500271661 | H164: =SUM(G$11:G164) -> -0.263287611 | I164: -0.004401509239 | J164: =SUM(I$12:I164) -> -0.2071971892
A165: 2.59801 | B165: 0.018112 | C165: -0.072449 | D165: -1.086731 | F165: -0.0875042 | G165: 0.001522771236 | H165: =SUM(G$11:G165) -> -0.2617648397 | I165: -0.004441943733 | J165: =SUM(I$12:I165) -> -0.2116391329
A166: 2.61478 | B166: -0.108673 | C166: -0.018112 | D166: -1.086731 | F166: 0.4449984 | G166: 0.002997588867 | H166: =SUM(G$11:G166) -> -0.2587672509 | I166: -0.00436466158 | J166: =SUM(I$12:I166) -> -0.2160037945
A167: 2.63154 | B167: -0.072449 | C167: -0.072449 | D167: -1.086731 | F167: -0.0875042 | G167: 0.002995801396 | H167: =SUM(G$11:G167) -> -0.2557714495 | I167: -0.004311834309 | J167: =SUM(I$12:I167) -> -0.2203156288
A168: 2.64822 | B168: 0.018112 | C168: -0.090561 | D168: -1.086731 | F168: -0.2650018 | G168: -0.00293990004 | H168: =SUM(G$11:G168) -> -0.2587113495 | I168: -0.004290786544 | J168: =SUM(I$12:I168) -> -0.2246064154
A169: 2.66506 | B169: 0.018112 | C169: -0.072449 | D169: -1.086731 | F169: -0.0875042 | G169: -0.00296810052 | H169: =SUM(G$11:G169) -> -0.26167945 | I169: -0.004381690532 | J169: =SUM(I$12:I169) -> -0.2289881059
A170: 2.68183 | B170: 0.018112 | C170: 0.018112 | D170: -1.104843 | F170: 0.7999936 | G170: 0.005974223619 | H170: =SUM(G$11:G170) -> -0.2557052264 | I170: -0.004338270512 | J170: =SUM(I$12:I170) -> -0.2333263764
A171: 2.6985 | B171: 0.018112 | C171: -0.054337 | D171: -1.068619 | F171: 0.0899934 | G171: 0.007418041645 | H171: =SUM(G$11:G171) -> -0.2482871848 | I171: -0.004200776747 | J171: =SUM(I$12:I171) -> -0.2375271532
A172: 2.71535 | B172: -0.036224 | C172: -0.072449 | D172: -1.068619 | F172: -0.0875042 | G172: 2.097151e-05 | H172: =SUM(G$11:G172) -> -0.2482662133 | I172: -0.004183462378 | J172: =SUM(I$12:I172) -> -0.2417106156
A173: 2.73213 | B173: 0.018112 | C173: 0 | D173: -1.122955 | F173: 0.622496 | G173: 0.004488581202 | H173: =SUM(G$11:G173) -> -0.2437776321 | I173: -0.004128247862 | J173: =SUM(I$12:I173) -> -0.2458388634
A174: 2.74865 | B174: -0.018112 | C174: 0 | D174: -1.104843 | F174: 0.622496 | G174: 0.01028363392 | H174: =SUM(G$11:G174) -> -0.2334939981 | I174: -0.003942263665 | J174: =SUM(I$12:I174) -> -0.2497811271
A175: 2.76561 | B175: -0.054337 | C175: 0.036224 | D175: -1.086731 | F175: 0.9774912 | G175: 0.01356789146 | H175: =SUM(G$11:G175) -> -0.2199261067 | I175: -0.003845002489 | J175: =SUM(I$12:I175) -> -0.2536261296
A176: 2.78232 | B176: -0.018112 | C176: -0.036224 | D176: -1.086731 | F176: 0.2675008 | G176: 0.01040190816 | H176: =SUM(G$11:G176) -> -0.2095241985 | I176: -0.0035880573 | J176: =SUM(I$12:I176) -> -0.2572141869
A177: 2.79903 | B177: -0.036224 | C177: -0.036224 | D177: -1.050507 | F177: 0.2675008 | G177: 0.004469938368 | H177: =SUM(G$11:G177) -> -0.2050542602 | I177: -0.003463803022 | J177: =SUM(I$12:I177) -> -0.2606779899
A178: 2.81588 | B178: -0.018112 | C178: -0.036224 | D178: -1.086731 | F178: 0.2675008 | G178: 0.00450738848 | H178: =SUM(G$11:G178) -> -0.2005468717 | I178: -0.003417189536 | J178: =SUM(I$12:I178) -> -0.2640951794
A179: 2.83262 | B179: -0.054337 | C179: 0.036224 | D179: -1.086731 | F179: 0.9774912 | G179: 0.01042058304 | H179: =SUM(G$11:G179) -> -0.1901262886 | I179: -0.003269934352 | J179: =SUM(I$12:I179) -> -0.2673651138
A180: 2.8493 | B180: -0.018112 | C180: 0 | D180: -1.086731 | F180: 0.622496 | G180: 0.01334389325 | H180: =SUM(G$11:G180) -> -0.1767823954 | I180: -0.003060018425 | J180: =SUM(I$12:I180) -> -0.2704251322
A181: 2.86619 | B181: 0.018112 | C181: -0.090561 | D181: -1.086731 | F181: -0.2650018 | G181: 0.003019038519 | H181: =SUM(G$11:G181) -> -0.1737633569 | I181: -0.002960358878 | J181: =SUM(I$12:I181) -> -0.2733854911
A182: 2.88289 | B182: -0.090561 | C182: 0.054337 | D182: -1.104843 | F182: 1.1549986 | G182: 0.00743147328 | H182: =SUM(G$11:G182) -> -0.1663318836 | I182: -0.002839795258 | J182: =SUM(I$12:I182) -> -0.2762252863
A183: 2.89949 | B183: -0.018112 | C183: -0.054337 | D183: -1.104843 | F183: 0.0899934 | G183: 0.0103334336 | H183: =SUM(G$11:G183) -> -0.15599845 | I183: -0.002675341769 | J183: =SUM(I$12:I183) -> -0.2789006281
A184: 2.91642 | B184: -0.018112 | C184: 0.072449 | D184: -1.068619 | F184: 1.3324962 | G184: 0.01204137446 | H184: =SUM(G$11:G184) -> -0.1439570755 | I184: -0.002539123524 | J184: =SUM(I$12:I184) -> -0.2814397516
A185: 2.93315 | B185: 0.018112 | C185: 0.054337 | D185: -1.086731 | F185: 1.1549986 | G185: 0.020807894 | H185: =SUM(G$11:G185) -> -0.1231491815 | I185: -0.00223434384 | J185: =SUM(I$12:I185) -> -0.2836740955
A186: 2.94991 | B186: -0.036224 | C186: 0.054337 | D186: -1.050507 | F186: 1.1549986 | G186: 0.01935777654 | H186: =SUM(G$11:G186) -> -0.103791405 | I186: -0.001901762115 | J186: =SUM(I$12:I186) -> -0.2855758576
A187: 2.9666 | B187: -0.036224 | C187: 0 | D187: -1.086731 | F187: 0.622496 | G187: 0.01483319244 | H187: =SUM(G$11:G187) -> -0.08895821255 | I187: -0.001608495558 | J187: =SUM(I$12:I187) -> -0.2871843531
A188: 2.98342 | B188: 0.036224 | C188: -0.018112 | D188: -1.122955 | F188: 0.4449984 | G188: 0.008977627904 | H188: =SUM(G$11:G188) -> -0.07998058465 | I188: -0.001420775284 | J188: =SUM(I$12:I188) -> -0.2886051284
A189: 3.0001 | B189: -0.090561 | C189: -0.054337 | D189: -1.032394 | F189: 0.0899934 | G189: 0.004461831612 | H189: =SUM(G$11:G189) -> -0.07551875304 | I189: -0.001296864476 | J189: =SUM(I$12:I189) -> -0.2899019929
A190: 3.01687 | B190: -0.072449 | C190: -0.054337 | D190: -1.068619 | F190: 0.0899934 | G190: 0.001509189318 | H190: =SUM(G$11:G190) -> -0.07400956372 | I190: -0.001253794936 | J190: =SUM(I$12:I190) -> -0.2911557878
A191: 3.03369 | B191: 0.036224 | C191: 0.16301 | D191: -1.104843 | F191: 2.219994 | G191: 0.01942699403 | H191: =SUM(G$11:G191) -> -0.05458256968 | I191: -0.001081459842 | J191: =SUM(I$12:I191) -> -0.2922372477
A192: 3.05025 | B192: 0.018112 | C192: -0.054337 | D192: -1.104843 | F192: 0.0899934 | G192: 0.01912669567 | H192: =SUM(G$11:G192) -> -0.03545587401 | I192: -0.0007455183138 | J192: =SUM(I$12:I192) -> -0.292982766
A193: 3.06722 | B193: 0 | C193: 0.072449 | D193: -1.086731 | F193: 1.3324962 | G193: 0.01206982426 | H193: =SUM(G$11:G193) -> -0.02338604976 | I193: -0.0004992737232 | J193: =SUM(I$12:I193) -> -0.2934820397
A194: 3.08398 | B194: 0.018112 | C194: 0.018112 | D194: -1.014282 | F194: 0.7999936 | G194: 0.01787026452 | H194: =SUM(G$11:G194) -> -0.005515785231 | I194: -0.0002421973772 | J194: =SUM(I$12:I194) -> -0.2937242371
A195: 3.10065 | B195: 0.036224 | C195: 0 | D195: -1.086731 | F195: 0.622496 | G195: 0.01185645082 | H195: =SUM(G$11:G195) -> 0.006340665585 | I195: 6.875377743e-06 | J195: =SUM(I$12:I195) -> -0.2937173617
A196: 3.11748 | B196: -0.018112 | C196: -0.036224 | D196: -1.050507 | F196: 0.2675008 | G196: 0.007489323072 | H196: =SUM(G$11:G196) -> 0.01382998866 | I196: 0.0001697360554 | J196: =SUM(I$12:I196) -> -0.2935476257
A197: 3.13427 | B197: -0.036224 | C197: 0.054337 | D197: -1.068619 | F197: 1.1549986 | G197: 0.01194188246 | H197: =SUM(G$11:G197) -> 0.02577187112 | I197: 0.0003324576128 | J197: =SUM(I$12:I197) -> -0.2932151681
A198: 3.15101 | B198: 0 | C198: 0.018112 | D198: -1.122955 | F198: 0.7999936 | G198: 0.01636328471 | H198: =SUM(G$11:G198) -> 0.04213515583 | I198: 0.0005683818156 | J198: =SUM(I$12:I198) -> -0.2926467862
A199: 3.16775 | B199: -0.018112 | C199: 0.054337 | D199: -1.086731 | F199: 1.1549986 | G199: 0.01636328471 | H199: =SUM(G$11:G199) -> 0.05849844055 | I199: 0.0008423032017 | J199: =SUM(I$12:I199) -> -0.291804483
A200: 3.18452 | B200: 0 | C200: 0.054337 | D200: -1.050507 | F200: 1.1549986 | G200: 0.01936932652 | H200: =SUM(G$11:G200) -> 0.07786776707 | I200: 0.001143430651 | J200: =SUM(I$12:I200) -> -0.2906610524
A201: 3.20119 | B201: -0.018112 | C201: -0.054337 | D201: -1.086731 | F201: 0.0899934 | G201: 0.01037700832 | H201: =SUM(G$11:G201) -> 0.08824477539 | I201: 0.001384548041 | J201: =SUM(I$12:I201) -> -0.2892765043
A202: 3.21794 | B202: 0.018112 | C202: -0.072449 | D202: -1.104843 | F202: =(C202-aybias)*g -> -0.0875042 | G202: 2.084705e-05 | H202: =SUM(G$11:G202) -> 0.08826562244 | I202: 0.001478274582 | J202: =SUM(I$12:I202) -> -0.2877982298
... 117 more rows
